bitfinex-derivatives/quotes_SOLF0:USTF0_20241010
["timestamp","ask_amount","ask_price","bid_price","bid_amount"]
[1728568343731,6.9,137.67,137.58,27.89]
[1728568343935,0.12502,137.69,137.58,27.89]
[1728568344135,0.12502,137.69,137.61,27.89]
[1728568344342,0.12502,137.69,137.63,27.89]
[1728568345030,0.12502,137.69,137.64,3.6359]
[1728568345231,0.12502,137.69,137.63,27.89]
[1728568345627,0.12502,137.69,137.68,3.635]
[1728568346039,0.12502,137.69,137.63,27.89]
[1728568346240,0.12502,137.69,137.67,3.6352]
[1728568346440,0.12502,137.69,137.63,27.89]
[1728568346641,0.12502,137.69,137.68,3.635]
[1728568347330,3.75822,137.75,137.65,27.89]
[1728568347533,0.12502,137.75,137.65,27.89]
[1728568348342,0.12502,137.75,137.72,3.6339]
[1728568348636,0.12502,137.75,137.65,27.89]
[1728568348842,7.02502,137.75,137.65,27.89]
[1728568349339,0.12502,137.75,137.74,3.6334]
[1728568350142,0.12502,137.75,137.69,2.7076]
[1728568350143,34.91502,137.75,137.69,2.7076]
[1728568350332,34.91502,137.75,137.71,3.6341]
[1728568350533,7.02502,137.75,137.69,2.7076]
[1728568351035,0.12502,137.75,137.69,2.7076]
[1728568351735,0.12502,137.75,137.73,3.6335]
[1728568351935,0.12502,137.75,137.69,2.7076]
[1728568352647,3.6336,137.74,137.69,6.3422]
[1728568352942,0.12502,137.75,137.64,8.2549]
[1728568352943,6.88,137.73,137.64,8.2549]
[1728568353236,6.88,137.73,137.67,3.6351]
[1728568353436,34.77,137.73,137.65,2.8208]
[1728568353638,38.4038,137.73,137.68,3.6348]
[1728568353838,10.5138,137.73,137.68,3.6348]
[1728568354041,6.88,137.73,137.65,2.8208]
[1728568354644,28.01502,137.75,137.65,2.8208]
[1728568354848,10.5135,137.74,137.65,2.8208]
[1728568355337,10.5135,137.74,137.69,3.6346]
[1728568356544,28.01502,137.75,137.65,2.8208]
[1728568356748,6.88,137.74,137.71,3.6342]
[1728568357344,6.88,137.74,137.67,6.88]
[1728568357643,0.12502,137.75,137.67,6.88]
[1728568358248,0.12502,137.75,137.65,30.7108]
[1728568358551,0.12502,137.75,137.67,6.88]
[1728568359049,0.12502,137.75,137.72,3.6339]
[1728568360539,0.12502,137.75,137.68,27.89]
[1728568360851,7.00502,137.81,137.72,27.89]
[1728568361039,7.00502,137.81,137.73,2.7341]
[1728568361646,3.6325,137.78,137.74,3.6334]
[1728568361847,7.00502,137.81,137.73,2.7341]
[1728568362148,3.75672,137.81,137.78,3.6323]
[1728568362351,0.12502,137.81,137.73,2.7341]
[1728568362750,3.75672,137.81,137.77,3.6326]
[1728568362952,0.12502,137.81,137.73,2.7341]
[1728568363552,3.632,137.8,137.73,2.7341]
[1728568363945,3.632,137.8,137.76,3.6326]
[1728568364143,3.6321,137.79,137.76,3.6326]
[1728568364344,0.12502,137.81,137.73,2.7341]
[1728568364747,0.12502,137.81,137.74,27.89]
[1728568365143,0.12502,137.81,137.74,31.51600192]
[1728568365756,0.12502,137.81,137.79,3.632]
[1728568366456,0.12502,137.81,137.76,6.88]
[1728568366650,0.12502,137.81,137.75,1.4519]
[1728568366846,0.12502,137.81,137.75,5.0849]
[1728568367156,0.12502,137.81,137.75,1.4519]
[1728568367356,0.12502,137.81,137.77,3.6325]
[1728568367945,0.12502,137.81,137.76,3.6328]
[1728568368351,0.12502,137.81,137.75,1.4519]
[1728568368657,6.88,137.8,137.73,2.7341]
[1728568369048,6.88,137.8,137.73,6.3676]
[1728568369650,6.88,137.8,137.74,3.6334]
[1728568370253,3.6326,137.77,137.74,3.6334]
[1728568370447,6.88,137.8,137.73,2.7341]
[1728568370653,6.88,137.8,137.75,3.6331]
[1728568371261,3.6324,137.78,137.73,2.7341]
[1728568371557,3.6324,137.78,137.74,3.6333]
[1728568371758,3.6323,137.79,137.73,2.7341]
[1728568372152,6.88,137.8,137.73,2.7341]
[1728568372354,3.6325,137.78,137.73,2.7341]
[1728568372560,6.88,137.8,137.73,2.7341]
[1728568372761,6.88,137.8,137.74,3.6333]
[1728568372962,6.88,137.8,137.73,2.7341]
[1728568373262,6.88,137.8,137.73,6.3676]
[1728568373560,3.6328,137.77,137.73,2.7341]
[1728568373856,3.6328,137.77,137.74,3.6333]
[1728568374160,3.6329,137.77,137.73,2.7341]
[1728568374356,6.88,137.8,137.74,3.6334]
[1728568374558,10.47690099,137.8,137.73,2.7341]
[1728568374856,27.89,137.79,137.73,2.7341]
[1728568375052,3.6334,137.75,137.73,2.7341]
[1728568375259,27.89,137.79,137.73,2.7341]
[1728568375756,27.89,137.79,137.7,1.4617]
[1728568375962,27.89,137.77,137.69,1.57242]
[1728568376262,3.6345,137.7,137.69,1.57242]
[1728568376452,3.6345,137.7,137.69,0.12502]
[1728568378553,3.6361,137.64,137.63,0.12502]
[1728568378760,3.6361,137.64,137.51,0.12502]
[1728568378761,6.88,137.64,137.58,1.4578]
[1728568378961,34.77,137.64,137.58,1.4578]
[1728568379158,27.89,137.64,137.58,1.4578]
[1728568379458,6.88,137.63,137.58,1.4578]
[1728568379664,3.637,137.61,137.58,1.4578]
[1728568379864,27.89,137.64,137.58,1.4578]
[1728568380163,6.88,137.65,137.58,1.4578]
[1728568380363,6.88,137.65,137.58,6.4774]
[1728568380764,3.6366,137.62,137.58,2.8398]
[1728568381063,6.82,137.65,137.58,2.8398]
[1728568381258,3.6371,137.61,137.58,2.8398]
[1728568381563,27.89,137.64,137.58,2.8398]
[1728568382362,3.6368,137.62,137.58,2.8398]
[1728568382557,27.89,137.64,137.58,2.8398]
[1728568382856,27.89,137.64,137.57,0.12502]
[1728568383056,27.89,137.62,137.57,0.12502]
[1728568383258,6.82,137.61,137.57,0.12502]
[1728568383657,3.6377,137.58,137.57,0.12502]
[1728568383868,27.89,137.62,137.57,0.12502]
[1728568384157,3.6376,137.59,137.57,0.12502]
[1728568384761,3.6377,137.58,137.57,0.12502]
[1728568385753,3.6375,137.59,137.57,0.12502]
[1728568386167,6.82,137.63,137.57,0.12502]
[1728568386372,34.71,137.64,137.57,0.12502]
[1728568387166,3.6371,137.6,137.57,0.12502]
[1728568387765,34.71,137.64,137.57,0.12502]
[1728568388169,27.89,137.67,137.57,0.12502]
[1728568388561,6.82,137.66,137.57,0.12502]
[1728568388760,3.6365,137.63,137.59,3.6372]
[1728568388958,6.82,137.66,137.57,3.68027579]
[1728568388959,6.82,137.66,137.57,0.12502]
[1728568389162,3.6357,137.66,137.58,6.82]
[1728568389362,6.82,137.67,137.58,34.71]
[1728568389768,3.636,137.65,137.61,3.6367]
[1728568389968,6.82,137.67,137.6,1.3421]
[1728568390461,6.82,137.67,137.61,1.4267]
[1728568390666,6.82,137.66,137.61,1.4267]
[1728568391165,28.01502,137.69,137.61,1.4267]
[1728568391463,28.01502,137.69,137.61,5.0635]
[1728568391464,3.636,137.65,137.61,5.0635]
[1728568391764,28.01502,137.69,137.61,5.0635]
[1728568391765,28.01502,137.69,137.61,2.8737]
[1728568391960,3.6358,137.65,137.62,3.6366]
[1728568392161,3.6358,137.65,137.61,2.8737]
[1728568392360,34.83502,137.69,137.61,2.8737]
[1728568392562,3.6365,137.63,137.61,2.8737]
[1728568392762,34.83502,137.69,137.61,2.8737]
[1728568393161,3.6354,137.67,137.63,3.6363]
[1728568393362,0.12502,137.69,137.62,6.82]
[1728568393567,0.12502,137.69,137.63,27.89]
[1728568393763,6.82,137.74,137.65,27.89]
[1728568393967,0.12502,137.75,137.67,27.89]
[1728568394161,0.12502,137.75,137.72,3.6339]
[1728568394366,0.12502,137.75,137.68,9.5988]
[1728568395669,0.12502,137.81,137.69,28.01502]
[1728568395862,0.12502,137.81,137.72,27.89]
[1728568396063,0.12502,137.81,137.73,6.82]
[1728568396669,27.89,137.8,137.7,27.89]
[1728568396970,27.89,137.77,137.71,6.82]
[1728568397173,6.94502,137.81,137.71,6.82]
[1728568397362,27.89,137.8,137.71,6.82]
[1728568397567,3.633,137.76,137.71,10.4541]
[1728568397864,27.89,137.8,137.71,10.4541]
[1728568398063,3.633,137.76,137.71,6.82]
[1728568398269,27.89,137.8,137.71,6.82]
[1728568398666,3.6328,137.77,137.72,3.6338]
[1728568398862,3.6328,137.77,137.73,1.3682]
[1728568399265,27.89,137.8,137.73,1.3682]
[1728568399669,3.6329,137.77,137.73,1.3682]
[1728568399871,27.89,137.8,137.73,1.3682]
[1728568400271,3.633,137.76,137.73,1.3682]
[1728568400775,27.89,137.8,137.73,1.3682]
[1728568401770,3.6329,137.77,137.73,1.3682]
[1728568401969,27.89,137.8,137.73,1.3682]
[1728568402171,0.12502,137.81,137.74,3.62124268]
[1728568402379,0.12502,137.81,137.75,6.63442028]
[1728568402569,0.12502,137.81,137.76,6.82]
[1728568402769,0.12502,137.81,137.75,6.5482]
[1728568402970,0.12502,137.81,137.76,6.82]
[1728568403169,3.6321,137.79,137.76,6.82]
[1728568403365,0.12502,137.81,137.75,9.7351]
[1728568403875,28.01502,137.81,137.75,2.9151]
[1728568404663,3.6328,137.77,137.75,2.9151]
[1728568404864,28.01502,137.81,137.75,2.9151]
[1728568405369,28.01502,137.81,137.69,0.12502]
[1728568405370,27.89,137.79,137.69,0.12502]
[1728568405576,34.71,137.79,137.69,6.94502]
[1728568405772,3.6341,137.72,137.69,6.94502]
[1728568405973,27.89,137.77,137.69,0.12502]
[1728568406273,3.6344,137.71,137.69,0.12502]
[1728568406471,27.89,137.77,137.69,0.12502]
[1728568406676,6.82,137.79,137.7,3.6344]
[1728568406878,6.82,137.79,137.69,0.12502]
[1728568407273,6.82,137.79,137.69,3.75962]
[1728568407469,6.82,137.79,137.69,0.12502]
[1728568407768,27.89,137.75,137.69,0.12502]
[1728568407967,3.6345,137.7,137.69,0.12502]
[1728568408168,6.82,137.75,137.69,0.12502]
[1728568408569,3.6341,137.72,137.69,0.12502]
[1728568408779,6.82,137.75,137.69,0.12502]
[1728568409377,27.89,137.77,137.69,0.12502]
[1728568409577,34.71,137.77,137.69,0.12502]
[1728568410185,3.6333,137.75,137.69,0.12502]
[1728568410385,34.71,137.77,137.69,0.12502]
[1728568410788,3.6342,137.72,137.69,0.12502]
[1728568410985,34.71,137.77,137.69,0.12502]
[1728568411480,27.89,137.77,137.69,0.12502]
[1728568411685,7.0,137.76,137.69,0.12502]
[1728568412483,3.6345,137.7,137.69,0.12502]
[1728568414179,7.0,137.72,137.64,1.3757]
[1728568414388,27.89,137.7,137.63,7.12502]
[1728568414682,27.89,137.7,137.63,0.12502]
[1728568414892,3.6358,137.65,137.63,0.12502]
[1728568416387,3.6361,137.64,137.63,0.12502]
[1728568416591,27.89,137.66,137.57,0.12502]
[1728568416890,3.6373,137.6,137.57,0.12502]
[1728568417089,7.0,137.64,137.57,0.12502]
[1728568417784,3.6377,137.58,137.57,0.12502]
[1728568418184,3.6375,137.59,137.57,0.12502]
[1728568419187,3.6377,137.58,137.57,0.12502]
[1728568424093,27.89,137.59,137.51,0.12502]
[1728568424297,27.89,137.57,137.51,0.12502]
[1728568424493,7.0,137.56,137.51,0.12502]
[1728568424684,3.6392,137.52,137.51,0.12502]
[1728568425294,3.6404,137.48,137.46,2.8787]
[1728568425593,34.89,137.53,137.45,0.12502]
[1728568425792,3.64,137.5,137.45,0.12502]
[1728568425988,7.0,137.52,137.45,0.12502]
[1728568426399,3.6403,137.49,137.45,0.12502]
[1728568426788,7.0,137.52,137.45,0.12502]
[1728568426789,34.89,137.52,137.45,0.12502]
[1728568426993,3.6408,137.46,137.45,0.12502]
[1728568427795,34.89,137.52,137.45,0.12502]
[1728568428001,3.6407,137.47,137.45,0.12502]
[1728568428593,34.89,137.52,137.45,0.12502]
[1728568429397,27.89,137.52,137.45,0.12502]
[1728568429599,7.02,137.52,137.45,0.12502]
[1728568430105,7.02,137.52,137.45,7.14502]
[1728568430302,3.64,137.5,137.45,7.14502]
[1728568430696,7.02,137.52,137.45,7.14502]
[1728568430997,3.64,137.49,137.45,0.12502]
[1728568431996,3.6399,137.5,137.46,3.6408]
[1728568432299,7.02,137.54,137.46,27.89]
[1728568432597,3.6397,137.51,137.47,7.24327603]
[1728568433189,0.26622,137.57,137.48,34.91]
[1728568433492,10.84651229,137.57,137.49,3.60069225]
[1728568433691,3.6396,137.51,137.49,3.60069225]
[1728568433889,7.28622,137.57,137.49,3.60069225]
[1728568434299,3.6396,137.51,137.49,3.60069225]
[1728568434502,7.28622,137.57,137.47,27.89]
[1728568434503,38.80202574,137.57,137.47,27.89]
[1728568434691,38.80202574,137.57,137.45,7.14502]
[1728568434898,3.6404,137.48,137.45,7.14502]
[1728568435198,38.80202574,137.57,137.45,7.14502]
[1728568435395,3.6402,137.49,137.45,7.14502]
[1728568435598,38.80202574,137.57,137.45,7.14502]
[1728568435792,27.89,137.55,137.45,7.14502]
[1728568436198,3.6404,137.48,137.45,7.14502]
[1728568436503,27.89,137.55,137.45,7.14502]
[1728568437294,3.6405,137.48,137.45,7.14502]
[1728568437498,7.02,137.53,137.45,7.14502]
[1728568437908,3.6404,137.48,137.45,7.14502]
[1728568438299,3.6404,137.48,137.45,0.12502]
[1728568438801,3.6406,137.47,137.45,0.12502]
[1728568439598,3.6408,137.46,137.45,0.12502]
[1728568440395,6.68,137.49,137.38,4.1633]
[1728568440396,3.6421,137.42,137.38,4.1633]
[1728568440597,27.89,137.46,137.38,2.7457]
[1728568440799,6.68,137.45,137.38,2.7457]
[1728568440996,3.6424,137.4,137.38,2.7457]
[1728568441203,6.68,137.45,137.34,27.89]
[1728568441403,3.6424,137.4,137.35,6.68]
[1728568441694,34.57,137.41,137.33,0.12502]
[1728568441896,6.68,137.4,137.33,0.12502]
[1728568442296,27.89,137.37,137.33,0.10402]
[1728568442496,31.534,137.34,137.33,0.10402]
[1728568442698,38.214,137.34,137.33,0.10402]
[1728568443002,31.534,137.34,137.33,0.10402]
[1728568443202,38.214,137.34,137.33,0.10402]
[1728568443404,31.534,137.34,137.33,0.10402]
[1728568443605,31.534,137.34,137.27,0.12502]
[1728568443813,3.6448,137.31,137.27,0.12502]
[1728568444102,27.89,137.37,137.27,0.12502]
[1728568444701,3.6448,137.31,137.27,0.12502]
[1728568445112,6.68,137.34,137.27,0.12502]
[1728568445409,3.6448,137.31,137.27,0.12502]
[1728568446608,3.6446,137.32,137.27,0.12502]
[1728568446808,6.7,137.36,137.27,28.01502]
[1728568447114,6.7,137.38,137.27,28.01502]
[1728568447497,6.7,137.38,137.3,6.73]
[1728568447805,0.12502,137.39,137.3,34.62]
[1728568448309,0.12502,137.39,137.3,38.265]
[1728568448901,0.12502,137.39,137.32,3.6444]
[1728568449107,0.12502,137.39,137.31,6.7]
[1728568449300,3.6433,137.37,137.31,6.7]
[1728568449500,3.6433,137.37,137.32,3.6445]
[1728568449711,0.12502,137.39,137.31,10.39617938]
[1728568450006,0.12502,137.39,137.33,3.6441]
[1728568450310,0.12502,137.39,137.31,10.39617938]
[1728568450506,3.6433,137.37,137.33,3.6442]
[1728568450899,0.12502,137.39,137.32,27.89]
[1728568451107,0.12502,137.39,137.35,3.6436]
[1728568451302,0.12502,137.39,137.35,6.7]
[1728568451813,0.12502,137.39,137.37,3.6431]
[1728568452014,0.12502,137.39,137.36,2.735]
[1728568452907,0.12502,137.39,137.36,6.3782]
[1728568453109,3.642,137.42,137.37,6.7]
[1728568453306,0.12502,137.45,137.37,34.59]
[1728568453610,0.12502,137.45,137.42,3.6419]
[1728568454009,0.12502,137.45,137.42,3.6417]
[1728568454420,0.12502,137.45,137.41,6.7]
[1728568455309,0.12502,137.45,137.41,10.34661962]
[1728568455618,0.12502,137.45,137.41,6.7]
[1728568455911,0.12502,137.45,137.41,10.342]
[1728568456819,0.12502,137.45,137.41,6.7]
[1728568457313,0.12502,137.45,137.42,10.3417]
[1728568458010,0.12502,137.45,137.42,6.7]
[1728568458217,3.76622,137.45,137.42,6.7]
[1728568458415,0.12502,137.45,137.42,6.7]
[1728568458813,3.6415,137.44,137.42,6.7]
[1728568459120,0.12502,137.45,137.42,6.7]
[1728568459513,3.6416,137.43,137.42,6.7]
[1728568461606,0.12502,137.45,137.36,2.735]
[1728568461811,34.71502,137.45,137.36,9.435]
[1728568462009,27.89,137.42,137.36,2.735]
[1728568462218,3.6432,137.37,137.36,2.735]
[1728568462413,27.89,137.42,137.34,8.1016]
[1728568462817,3.6435,137.36,137.34,8.1016]
[1728568463016,27.89,137.42,137.34,8.1016]
[1728568463324,27.89,137.4,137.34,6.7]
[1728568463518,27.89,137.4,137.32,1.4146]
[1728568463724,27.89,137.35,137.3,0.03]
[1728568463924,3.6444,137.33,137.3,0.03]
[1728568464114,6.7,137.36,137.3,0.03]
[1728568464823,6.82502,137.39,137.3,0.03]
[1728568465019,3.6434,137.37,137.3,0.03]
[1728568465221,0.12502,137.39,137.31,27.89]
[1728568465420,0.12502,137.39,137.32,6.7]
[1728568465624,0.12502,137.39,137.33,27.89]
[1728568465820,0.12502,137.39,137.34,2.8109]
[1728568466515,0.12502,137.45,137.38,27.89]
[1728568466721,0.12502,137.45,137.39,6.7]
[1728568467121,0.12502,137.45,137.39,8.0523]
[1728568467721,3.76622,137.45,137.39,8.0523]
[1728568467922,0.12502,137.45,137.39,8.0523]
[1728568468123,0.12502,137.45,137.4,6.7]
[1728568468320,3.6416,137.44,137.4,6.7]
[1728568468525,0.12502,137.45,137.4,6.7]
[1728568468831,3.6415,137.44,137.4,6.7]
[1728568469031,0.12502,137.45,137.4,6.7]
[1728568469731,0.12502,137.45,137.39,1.3523]
[1728568469918,0.12502,137.45,137.4,6.96]
[1728568470531,3.76632,137.45,137.4,6.96]
[1728568471927,0.12502,137.45,137.4,6.96]
[1728568472331,0.12502,137.45,137.4,34.85]
[1728568473233,3.6406,137.47,137.4,34.85]
[1728568473526,3.6406,137.47,137.41,6.96]
[1728568473941,0.12502,137.51,137.42,1.4314]
[1728568474125,0.12502,137.51,137.42,29.3214]
[1728568474429,3.76452,137.51,137.44,27.89]
[1728568474632,0.12502,137.51,137.45,6.96]
[1728568475037,3.6399,137.5,137.46,3.6318933]
[1728568475226,0.12502,137.51,137.46,3.6318933]
[1728568475428,0.12502,137.51,137.45,6.96]
[1728568475634,3.6402,137.49,137.45,6.96]
[1728568476329,0.12502,137.51,137.45,6.96]
[1728568476544,3.64,137.49,137.45,6.96]
[1728568476929,3.6408,137.47,137.45,6.96]
[1728568477232,0.12502,137.51,137.44,6.96]
[1728568477629,0.12502,137.51,137.42,29.3214]
[1728568477832,0.12502,137.51,137.43,6.96]
[1728568478031,3.641,137.46,137.43,6.96]
[1728568478537,0.12502,137.51,137.43,6.96]
[1728568478729,0.12502,137.51,137.42,1.4314]
[1728568478730,0.12502,137.51,137.42,29.3214]
[1728568478937,0.12502,137.51,137.43,6.96]
[1728568479438,3.6402,137.49,137.43,6.96]
[1728568479737,0.12502,137.51,137.43,6.96]
[1728568480140,3.6401,137.49,137.43,6.96]
[1728568480437,0.12502,137.51,137.44,3.60713833]
[1728568480641,3.6398,137.5,137.44,27.89]
[1728568480841,0.12502,137.51,137.44,38.47908141]
[1728568481036,0.12502,137.51,137.44,34.85]
[1728568481234,3.6403,137.49,137.44,38.51256607]
[1728568481441,0.12502,137.51,137.44,38.51256607]
[1728568481841,3.64,137.5,137.44,38.51256607]
[1728568482544,0.12502,137.51,137.44,31.55256607]
[1728568482744,0.12502,137.51,137.45,6.96]
[1728568483144,3.6403,137.48,137.45,6.96]
[1728568483347,0.12502,137.51,137.45,6.96]
[1728568483646,3.6407,137.47,137.45,6.96]
[1728568484147,3.641,137.46,137.42,29.3214]
[1728568484446,27.89,137.5,137.42,1.4314]
[1728568484633,3.6414,137.44,137.42,8.3914]
[1728568484840,27.89,137.5,137.42,8.3914]
[1728568485240,3.6411,137.45,137.42,8.3914]
[1728568485644,27.89,137.5,137.42,8.3914]
[1728568486243,3.6401,137.49,137.42,8.3914]
[1728568486538,0.12502,137.51,137.42,36.2814]
[1728568487542,3.6402,137.49,137.42,36.2814]
[1728568487943,3.6402,137.49,137.43,6.96]
[1728568488143,3.6402,137.49,137.44,3.67722456]
[1728568488451,3.6405,137.48,137.44,3.67722456]
[1728568488845,0.12502,137.51,137.43,6.96]
[1728568488846,3.641,137.46,137.43,6.96]
[1728568489046,0.12502,137.51,137.43,6.96]
[1728568489858,3.6405,137.48,137.43,6.96]
[1728568490056,0.12502,137.51,137.43,6.96]
[1728568490451,0.12502,137.51,137.42,1.4314]
[1728568490756,0.12502,137.51,137.43,6.96]
[1728568491156,0.12502,137.51,137.44,3.56054294]
[1728568491459,3.6403,137.48,137.43,6.96]
[1728568491657,3.6403,137.48,137.44,6.96]
[1728568491963,28.01502,137.51,137.44,6.96]
[1728568492159,3.6408,137.46,137.44,6.96]
[1728568492359,28.01502,137.51,137.43,6.96]
[1728568493861,3.641,137.46,137.43,6.96]
[1728568494456,3.6407,137.47,137.43,6.96]
[1728568494855,28.01502,137.51,137.43,6.96]
[1728568495258,28.01502,137.51,137.42,1.4314]
[1728568495454,3.6401,137.49,137.43,6.96]
[1728568495661,28.01502,137.51,137.43,6.96]
[1728568496057,3.6411,137.46,137.43,6.96]
[1728568496557,28.01502,137.51,137.42,8.3914]
[1728568496558,27.89,137.49,137.42,8.3914]
[1728568496756,27.89,137.47,137.41,1.3522]
[1728568496956,27.89,137.44,137.33,28.01502]
[1728568497256,3.6423,137.41,137.39,0.12502]
[1728568497459,27.89,137.44,137.39,0.12502]
[1728568497850,3.6423,137.41,137.39,0.12502]
[1728568498056,10.51123081,137.46,137.39,0.12502]
[1728568498251,31.57557612,137.49,137.39,0.12502]
[1728568498459,3.6412,137.45,137.39,0.12502]
[1728568498667,6.96,137.48,137.39,0.12502]
[1728568498857,3.6408,137.47,137.4,27.89]
[1728568499164,7.08502,137.51,137.41,8.4003]
[1728568499461,3.6418,137.43,137.41,8.4003]
[1728568499864,27.89,137.5,137.41,8.4003]
[1728568500769,27.89,137.46,137.39,6.80502]
[1728568500966,31.46453884,137.46,137.39,6.80502]
[1728568501162,3.6424,137.4,137.39,6.80502]
[1728568501362,27.89,137.46,137.39,6.80502]
[1728568501769,3.6424,137.41,137.39,6.80502]
[1728568501971,27.89,137.46,137.39,6.80502]
[1728568502267,6.68,137.47,137.39,6.80502]
[1728568502268,3.6413,137.45,137.39,6.80502]
[1728568502467,6.68,137.47,137.39,6.80502]
[1728568502659,6.68,137.47,137.4,6.68]
[1728568502865,3.6418,137.43,137.4,6.68]
[1728568503965,3.6412,137.45,137.4,6.68]
[1728568504268,27.89,137.5,137.41,6.68]
[1728568504973,3.6405,137.48,137.41,6.68]
[1728568505268,27.89,137.5,137.41,6.68]
[1728568505669,3.641,137.46,137.41,6.68]
[1728568505967,0.12502,137.51,137.42,27.89]
[1728568506168,28.1574,137.59,137.47,27.89]
[1728568506377,6.80502,137.63,137.49,27.89]
[1728568506671,0.12502,137.63,137.52,27.89]
[1728568506873,0.12502,137.63,137.53,6.68]
[1728568507077,0.12502,137.63,137.53,34.57]
[1728568507369,0.12502,137.63,137.56,27.89]
[1728568507670,0.12502,137.63,137.57,6.68]
[1728568508076,28.01502,137.63,137.51,28.01502]
[1728568508265,27.89,137.61,137.51,0.12502]
[1728568508570,27.89,137.59,137.51,0.12502]
[1728568508765,27.89,137.59,137.51,6.80502]
[1728568508964,27.89,137.57,137.51,0.12502]
[1728568509471,27.89,137.59,137.51,0.12502]
[1728568509665,27.89,137.57,137.51,0.12502]
[1728568509968,3.6389,137.54,137.51,0.12502]
[1728568510170,27.89,137.57,137.51,0.12502]
[1728568510770,27.89,137.59,137.51,0.12502]
[1728568510974,3.6384,137.56,137.51,0.12502]
[1728568511469,34.57,137.61,137.51,29.36552]
[1728568511672,27.89,137.61,137.51,29.36552]
[1728568512072,3.6381,137.57,137.51,29.36552]
[1728568512271,27.89,137.61,137.51,1.47552]
[1728568512876,27.89,137.59,137.52,6.68]
[1728568513077,3.6386,137.55,137.52,6.68]
[1728568513274,27.89,137.59,137.52,6.68]
[1728568513474,27.89,137.59,137.51,8.15552]
[1728568514676,27.89,137.57,137.51,8.15552]
[1728568514867,3.6392,137.52,137.51,0.12502]
[1728568515373,27.89,137.57,137.51,0.12502]
[1728568515678,6.68,137.57,137.51,0.12502]
[1728568515974,3.6392,137.52,137.51,0.12502]
[1728568517271,3.6406,137.47,137.46,9.5358]
[1728568517466,34.57,137.53,137.45,0.12502]
[1728568517778,3.6408,137.47,137.45,0.12502]
[1728568518277,3.6398,137.5,137.45,0.12502]
[1728568518473,34.57,137.53,137.45,0.12502]
[1728568518681,0.1262,137.56,137.45,28.01502]
[1728568518882,3.6391,137.53,137.45,28.01502]
[1728568519074,0.12502,137.57,137.47,27.89]
[1728568519274,0.12502,137.57,137.5,27.89]
[1728568519982,3.6391,137.53,137.5,27.89]
[1728568520371,0.12502,137.57,137.5,27.89]
[1728568520572,3.6385,137.55,137.51,6.68]
[1728568520771,0.12502,137.57,137.51,6.68]
[1728568521080,3.6391,137.53,137.51,6.68]
[1728568521283,0.12502,137.57,137.51,6.68]
[1728568521579,3.6392,137.52,137.51,6.68]
[1728568521880,0.12502,137.57,137.51,6.68]
[1728568522186,0.12502,137.57,137.52,27.89]
[1728568522487,6.80502,137.63,137.54,27.89]
[1728568522783,3.6372,137.6,137.55,8.1428]